bitfinex/quotes_BTCUSD_20251215
["timestamp","ask_amount","ask_price","bid_price","bid_amount"]
[1765781835856,0.01545,89835.0,89830.0,0.0116469]
[1765781836070,0.01545,89835.0,89831.0,0.23377064]
[1765781836295,0.02489,89831.0,89830.0,0.00051477]
[1765781836704,0.04925,89831.0,89830.0,0.00051477]
[1765781836920,0.01131,89837.0,89833.0,0.01113176]
[1765781837048,0.01131,89837.0,89834.0,0.01113164]
[1765781837457,0.24506752,89837.0,89833.0,0.01113176]
[1765781837656,0.03549139,89836.0,89832.0,0.01113189]
[1765781837862,0.02436,89836.0,89833.0,0.01113176]
[1765781838845,0.01113151,89835.0,89832.0,0.01113189]
[1765781839238,0.03549139,89836.0,89832.0,0.01113189]
[1765781839409,0.24606735,89837.0,89831.0,0.2337723]
[1765781839410,0.03549151,89835.0,89831.0,0.2337723]
[1765781839610,0.01545,89832.0,89830.0,0.0116469]
[1765781839996,0.03981,89832.0,89830.0,0.0116469]
[1765781840635,0.01545,89832.0,89830.0,0.0116469]
[1765781840840,0.01545,89832.0,89830.0,0.00051477]
[1765781841269,0.01545,89831.0,89830.0,0.00051477]
[1765781841401,0.03981,89831.0,89830.0,0.00051477]
[1765781842487,0.03981,89831.0,89830.0,0.00151477]
[1765781842827,0.26245029,89831.0,89830.0,0.00151477]
[1765781843075,0.29539107,89831.0,89830.0,0.00151477]
[1765781843232,0.40665202,89831.0,89830.0,0.00151477]
[1765781843634,0.37371124,89831.0,89830.0,0.00051477]
[1765781845625,0.39231124,89831.0,89830.0,0.00051477]
[1765781849310,0.40175124,89831.0,89830.0,0.00051477]
[1765781849534,0.29049029,89831.0,89830.0,0.00051477]
[1765781849747,0.40175124,89831.0,89830.0,0.00051477]
[1765781851249,0.40075124,89831.0,89830.0,0.00051477]
[1765781851697,0.40375124,89831.0,89830.0,0.00051477]
[1765781852824,0.29249029,89831.0,89830.0,0.00051477]
[1765781853023,0.40375124,89831.0,89830.0,0.00051477]
[1765781856089,0.49534991,89831.0,89830.0,0.00051477]
[1765781856297,0.40375124,89831.0,89830.0,0.00051477]
[1765781857216,0.25053029,89831.0,89830.0,0.00051477]
[1765781857576,0.04978,89831.0,89830.0,0.00051477]
[1765781858005,0.05178,89831.0,89830.0,0.00051477]
[1765781858461,0.04978,89831.0,89830.0,0.00051477]
[1765781858802,0.05178,89831.0,89830.0,0.00051477]
[1765781859206,0.01144,89831.0,89830.0,0.00051477]
[1765781859595,0.05274,89831.0,89830.0,0.00051477]
[1765781860231,0.05274,89831.0,89830.0,0.22315753]
[1765781860533,0.05274,89831.0,89830.0,0.00051477]
[1765781872550,0.16400095,89831.0,89830.0,0.00051477]
[1765781873782,0.05274,89831.0,89830.0,0.00051477]
[1765781874008,0.16400095,89831.0,89830.0,0.00051477]
[1765781875718,0.05274,89831.0,89830.0,0.00051477]
[1765781885290,0.01144,89831.0,89830.0,0.00051477]
[1765781885968,0.05238,89831.0,89830.0,0.00051477]
[1765781886712,0.27502029,89831.0,89830.0,0.00051477]
[1765781887664,0.33059033,89831.0,89830.0,0.00051477]
[1765781887867,0.39672099,89831.0,89830.0,0.00051477]
[1765781888631,0.40117981,89831.0,89830.0,0.00051477]
[1765781889048,0.39917981,89831.0,89830.0,0.00051477]
[1765781889224,0.40217981,89831.0,89830.0,0.00051477]
[1765781892104,0.41977981,89831.0,89830.0,0.00051477]
[1765781892766,0.29091886,89831.0,89830.0,0.00051477]
[1765781893271,0.30851886,89831.0,89830.0,0.00051477]
[1765781893716,0.41977981,89831.0,89830.0,0.00051477]
[1765781897519,0.29091886,89831.0,89830.0,0.00051477]
[1765781897730,0.02844,89831.0,89830.0,0.00051477]
[1765781898380,0.05338,89831.0,89830.0,0.00051477]
[1765781898625,0.2533517,89831.0,89830.0,0.00051477]
[1765781899034,0.2543517,89831.0,89830.0,0.00051477]
[1765781899172,0.16264095,89831.0,89830.0,0.00051477]
[1765781900599,0.16164095,89831.0,89830.0,0.00051477]
[1765781900922,0.16364095,89831.0,89830.0,0.00051477]
[1765781906196,0.05238,89831.0,89830.0,0.00051477]
[1765781906391,0.16364095,89831.0,89830.0,0.00051477]
[1765781909561,0.25569757,89831.0,89830.0,0.00051477]
[1765781911390,0.06280825,89831.0,89830.0,0.00051477]
[1765781911599,0.1740692,89831.0,89830.0,0.00051477]
[1765781911797,0.17952814,89831.0,89830.0,0.00051477]
[1765781915727,0.06826719,89831.0,89830.0,0.00051477]
[1765781915943,0.17952814,89831.0,89830.0,0.00051477]
[1765781916145,0.27513097,89831.0,89830.0,0.00051477]
[1765781917814,0.56583097,89831.0,89830.0,0.00051477]
[1765781918019,0.58986466,89831.0,89830.0,0.00051477]
[1765781918549,0.58886466,89831.0,89830.0,0.00051477]
[1765781918994,0.58786466,89831.0,89830.0,0.00051477]
[1765781919169,0.59086466,89831.0,89830.0,0.00051477]
[1765781919574,0.49526183,89831.0,89830.0,0.00051477]
[1765781919757,0.17752814,89831.0,89830.0,0.00051477]
[1765781919960,0.18052814,89831.0,89830.0,0.00051477]
[1765781920378,0.18152814,89831.0,89830.0,0.00051477]
[1765781920583,0.17652814,89831.0,89830.0,0.00051477]
[1765781920840,0.1720692,89831.0,89830.0,0.00051477]
[1765781921042,0.1760692,89831.0,89830.0,0.00051477]
[1765781921294,0.1926692,89831.0,89830.0,0.00051477]
[1765781921650,0.1936692,89831.0,89830.0,0.00051477]
[1765781922213,0.1906692,89831.0,89830.0,0.00051477]
[1765781922409,0.1926692,89831.0,89830.0,0.00051477]
[1765781923449,0.19267358,89831.0,89830.0,0.00051477]
[1765781924089,0.19267363,89831.0,89830.0,0.00051477]
[1765781924497,0.2882772,89831.0,89830.0,0.00051477]
[1765781924779,0.5789772,89831.0,89830.0,0.00051477]
[1765781925035,0.60301403,89831.0,89830.0,0.00051477]
[1765781925389,0.60101403,89831.0,89830.0,0.00051477]
[1765781925799,0.60401403,89831.0,89830.0,0.00051477]
[1765781926635,0.60301403,89831.0,89830.0,0.00051477]
[1765781927078,0.60401403,89831.0,89830.0,0.00051477]
[1765781928521,0.60847328,89831.0,89830.0,0.00051477]
[1765781928985,1.76299028,89831.0,89830.0,0.00051477]
[1765781930447,1.66738671,89831.0,89830.0,0.00051477]
[1765781933764,1.74744721,89831.0,89830.0,0.00051477]
[1765781933972,1.7174051,89831.0,89830.0,0.00051477]
[1765781934813,1.7144051,89831.0,89830.0,0.00051477]
[1765781935010,1.7134051,89831.0,89830.0,0.00151477]
[1765781935169,1.82791272,89831.0,89830.0,0.00151477]
[1765781935574,1.82391272,89831.0,89830.0,0.00051477]
[1765781935809,1.82391272,89831.0,89830.0,0.00151477]
[1765781936113,1.52930972,89831.0,89830.0,0.00151477]
[1765781936332,1.53030972,89831.0,89830.0,0.00151477]
[1765781938316,1.51270972,89831.0,89830.0,0.00151477]
[1765781938528,1.53030972,89831.0,89830.0,0.00151477]
[1765781938728,1.41904877,89831.0,89830.0,0.00151477]
[1765781938985,1.53030972,89831.0,89830.0,0.00151477]
[1765781942103,1.51270972,89831.0,89830.0,0.00151477]
[1765781942304,1.53030972,89831.0,89830.0,0.00151477]
[1765781945927,1.61374971,89831.0,89830.0,0.00151477]
[1765781948474,1.35218371,89831.0,89830.0,0.00151477]
[1765781948646,0.65256971,89831.0,89830.0,0.00151477]
[1765781948907,0.68259559,89831.0,89830.0,0.00151477]
[1765781949049,0.66499559,89831.0,89830.0,0.00151477]
[1765781949262,0.68259559,89831.0,89830.0,0.00151477]
[1765781949785,0.74578507,89831.0,89830.0,0.00151477]
[1765781950543,0.60930468,89831.0,89830.0,0.00151477]
[1765781950825,0.62690468,89831.0,89830.0,0.00151477]
[1765781951129,0.68259559,89831.0,89830.0,0.00151477]
[1765781952389,0.65256971,89831.0,89830.0,0.00151477]
[1765781952767,0.64213703,89831.0,89830.0,0.00151477]
[1765781952972,0.76307458,89831.0,89830.0,0.00151477]
[1765781953175,0.88027458,89831.0,89830.0,0.00151477]
[1765781953383,0.76307458,89831.0,89830.0,0.00151477]
[1765781953585,0.76307677,89831.0,89830.0,0.00151477]
[1765781954902,0.65181582,89831.0,89830.0,0.00151477]
[1765781955106,0.76307677,89831.0,89830.0,0.00151477]
[1765781960547,0.80312311,89831.0,89830.0,0.00151477]
[1765781961159,0.81309516,89831.0,89830.0,0.00151477]
[1765781993310,0.93029516,89831.0,89830.0,0.00151477]
[1765781993506,0.81309516,89831.0,89830.0,0.00151477]
[1765781998511,0.63496915,89831.0,89830.0,0.00151477]
[1765781998716,0.65256915,89831.0,89830.0,0.00151477]
[1765782000261,0.63496915,89831.0,89830.0,0.00151477]
[1765782000486,0.65256915,89831.0,89830.0,0.00151477]
[1765782000862,0.61982315,89831.0,89830.0,0.00151477]
[1765782001063,0.63742315,89831.0,89830.0,0.00151477]
[1765782001606,0.61982315,89831.0,89830.0,0.00151477]
[1765782001789,0.5261622,89831.0,89830.0,0.00151477]
[1765782002375,0.63742315,89831.0,89830.0,0.00151477]
[1765782002577,0.5261622,89831.0,89830.0,0.00151477]
[1765782002782,0.0439282,89831.0,89830.0,0.00151477]
[1765782002986,0.005,89831.0,89830.0,0.00151477]
[1765782003566,0.04273,89831.0,89830.0,0.00151477]
[1765782003766,0.004,89831.0,89830.0,0.00151477]
[1765782003969,0.005,89831.0,89830.0,0.00151477]
[1765782004171,0.004,89831.0,89830.0,0.00151477]
[1765782004663,0.0176,89835.0,89830.0,0.00151477]
[1765782004664,0.0176,89835.0,89832.0,0.01113189]
[1765782004974,0.0176,89835.0,89833.0,0.22263533]
[1765782006334,0.0186,89835.0,89833.0,0.22263533]
[1765782007041,0.0196,89835.0,89833.0,0.22963533]
[1765782007256,0.04295,89835.0,89833.0,0.007]
[1765782008165,0.26558156,89835.0,89833.0,0.007]
[1765782008394,0.0196,89835.0,89833.0,0.007]
[1765782008829,0.02335,89834.0,89833.0,0.007]
[1765782009800,0.02335,89834.0,89831.0,0.01113201]
[1765782010243,0.02435,89834.0,89833.0,0.007]
[1765782010467,0.24698285,89834.0,89833.0,0.007]
[1765782010716,0.03973,89834.0,89833.0,0.007]
[1765782010942,0.03973,89834.0,89831.0,0.01113201]
[1765782011132,0.01638,89834.0,89831.0,0.23377144]
[1765782011350,0.01638,89834.0,89831.0,0.24077144]
[1765782011351,0.04073,89834.0,89831.0,0.24077144]
[1765782011565,0.03973,89834.0,89831.0,0.23377144]
[1765782011774,0.0176,89835.0,89833.0,0.22263481]
[1765782012190,0.001,89834.0,89833.0,0.22263481]
[1765782012401,0.03973,89834.0,89830.0,0.00051477]
[1765782012554,0.01538,89831.0,89830.0,0.00051477]
[1765782013599,0.01538,89831.0,89830.0,0.00751477]
[1765782013805,0.01538,89831.0,89830.0,0.00051477]
[1765782014009,0.01638,89831.0,89830.0,0.00751477]
[1765782014224,0.001,89831.0,89830.0,0.00751477]
[1765782017917,0.001,89831.0,89830.0,0.23015753]
[1765782019009,0.001,89831.0,89830.0,0.27039753]
[1765782029424,0.001,89831.0,89830.0,0.24577753]
[1765782029790,0.001,89831.0,89830.0,0.26846753]
[1765782033538,0.001,89831.0,89830.0,0.24577753]
[1765782033741,0.001,89831.0,89830.0,0.26846753]
[1765782034958,0.001,89831.0,89830.0,0.37968982]
[1765782035298,0.001,89831.0,89830.0,0.39724982]
[1765782035935,0.01112953,89851.0,89847.0,0.23373029]
[1765782036357,0.23372388,89850.0,89845.0,0.01113027]
[1765782036618,0.01112966,89850.0,89846.0,0.01113015]
[1765782037008,0.01112966,89850.0,89847.0,0.01113003]
[1765782037357,0.01112966,89850.0,89847.0,0.01713003]
[1765782037552,0.01112928,89853.0,89849.0,0.01112978]
[1765782037803,0.23371509,89853.0,89849.0,0.01112978]
[1765782038012,0.01112928,89853.0,89849.0,0.01112978]
[1765782038570,0.02868916,89854.0,89850.0,0.01112966]
[1765782038798,0.01112928,89853.0,89850.0,0.01112966]
[1765782039071,0.001,89853.0,89852.0,0.2225859]
[1765782039283,0.001,89853.0,89851.0,0.01146]
[1765782039470,0.001,89853.0,89850.0,0.23372253]
[1765782039666,0.01756,89854.0,89850.0,0.01112966]
[1765782039892,0.01212928,89853.0,89850.0,0.01112966]
[1765782040249,0.2605356,89853.0,89850.0,0.004]
[1765782040391,0.01112941,89852.0,89848.0,0.0111299]
[1765782040589,0.01112953,89851.0,89850.0,0.005]
[1765782041618,0.01112953,89851.0,89850.0,0.006]
[1765782042112,0.01112953,89851.0,89850.0,0.005]
[1765782042401,0.01112941,89852.0,89849.0,0.01112978]
[1765782042570,0.01112941,89852.0,89850.0,0.001]
[1765782042746,0.001,89851.0,89850.0,0.007]
[1765782043437,0.01756,89854.0,89851.0,0.23372026]
[1765782044247,0.001,89852.0,89851.0,0.23372026]
[1765782044461,0.001,89852.0,89851.0,0.01112953]
[1765782044880,0.001,89852.0,89851.0,0.26787026]
[1765782045303,0.001,89852.0,89851.0,0.04527953]
[1765782045528,0.01756,89854.0,89851.0,0.26886996]
[1765782045831,0.01856,89854.0,89851.0,0.25117996]
[1765782046376,0.01756,89854.0,89851.0,0.24617996]
[1765782046696,0.001,89852.0,89851.0,0.25117996]
[1765782046911,0.01756,89854.0,89851.0,0.24617996]
[1765782047123,0.02868916,89854.0,89851.0,0.02358953]
[1765782047378,0.02968916,89854.0,89851.0,0.02758953]
[1765782047598,0.02968916,89854.0,89851.0,0.02858953]
[1765782048931,0.02968916,89854.0,89851.0,0.25118019]
[1765782049208,0.02968916,89854.0,89851.0,0.02858953]
[1765782049629,0.01856,89854.0,89851.0,0.27386988]
[1765782049831,0.01856,89854.0,89853.0,0.22258577]
[1765782050059,0.01856,89854.0,89853.0,0.23759577]
[1765782050259,0.001,89854.0,89853.0,0.23759577]
[1765782050995,0.001,89854.0,89853.0,0.23859577]
[1765782051881,0.002,89854.0,89853.0,0.24359577]
[1765782052478,0.002,89854.0,89853.0,0.26628577]
[1765782052890,0.002,89854.0,89853.0,0.37750806]
[1765782053204,0.002,89854.0,89853.0,0.66820806]
[1765782053526,0.002,89854.0,89853.0,0.67833437]
[1765782053679,0.01112644,89876.0,89868.0,0.22254847]
[1765782054398,0.01112644,89876.0,89872.0,0.01112693]
[1765782054612,0.01112619,89878.0,89875.0,0.01112656]
[1765782054812,0.00011456,89878.0,89876.0,0.22252881]
[1765782055027,0.00011456,89878.0,89875.0,0.01112656]
[1765782055196,0.01112644,89876.0,89869.0,0.0338173]
[1765782055596,0.00011456,89878.0,89875.0,0.00877]
[1765782055795,0.01124075,89878.0,89875.0,0.00877]
[1765782056034,0.22252634,89877.0,89875.0,0.00877]
[1765782056335,0.22252634,89877.0,89875.0,0.01177]
[1765782057035,0.01124075,89878.0,89875.0,0.01177]
[1765782057389,0.01124075,89878.0,89876.0,0.02296]
[1765782058007,0.22252634,89877.0,89876.0,0.02296]
[1765782058591,0.22252634,89877.0,89875.0,0.00877]
[1765782058817,0.22252634,89877.0,89876.0,0.003]
[1765782059016,0.01124075,89878.0,89875.0,0.03173]
[1765782059237,0.01124075,89878.0,89875.0,0.00877]
[1765782059594,0.01124075,89878.0,89876.0,0.02596]
[1765782059733,0.22252634,89877.0,89876.0,0.02596]
[1765782059936,0.22252634,89877.0,89876.0,0.003]
[1765782060302,0.01124075,89878.0,89876.0,0.003]
[1765782060604,0.00011456,89878.0,89877.0,0.0154]
[1765782060752,0.22264055,89878.0,89876.0,0.004]
[1765782061125,0.00011456,89878.0,89876.0,0.001]
[1765782061275,0.01112631,89877.0,89874.0,0.01112668]
[1765782061469,0.00011456,89878.0,89875.0,0.003]
[1765782061673,0.00011456,89878.0,89877.0,0.0154]
[1765782062222,0.00011456,89878.0,89877.0,0.03836]
[1765782062979,0.00011456,89878.0,89877.0,0.04136]
[1765782064546,0.00011456,89878.0,89877.0,0.04236]
[1765782066220,0.00011456,89878.0,89877.0,0.15358229]
[1765782066631,0.00011456,89878.0,89877.0,0.04236]
[1765782067948,0.00011456,89878.0,89877.0,0.06461263]
[1765782069275,0.00011456,89878.0,89877.0,0.04236]
[1765782069735,0.00011456,89878.0,89877.0,0.06461263]
[1765782071521,0.00011456,89878.0,89877.0,0.0757377]
[1765782072307,0.00011456,89878.0,89877.0,0.05348507]
[1765782076057,0.00011456,89878.0,89877.0,0.0757377]
[1765782077717,0.00011456,89878.0,89877.0,0.18695999]
[1765782078930,0.00011456,89878.0,89877.0,0.16470736]
[1765782079538,0.00011456,89878.0,89877.0,0.05348507]
[1765782082247,0.00011456,89878.0,89877.0,0.15930828]
[1765782083287,0.00011456,89878.0,89877.0,0.15830828]
[1765782083489,0.00011456,89878.0,89877.0,0.15730828]
[1765782083698,0.00011456,89878.0,89877.0,0.16130828]
[1765782083921,0.00011456,89878.0,89877.0,0.27253057]
[1765782084134,0.00011456,89878.0,89877.0,0.25027794]
[1765782084456,0.00011456,89878.0,89877.0,0.13905565]
[1765782084670,0.00011456,89878.0,89877.0,0.16130828]
[1765782085518,0.00011456,89878.0,89877.0,0.27253057]
[1765782085727,0.00011456,89878.0,89877.0,0.25027794]
[1765782086242,0.00011456,89878.0,89877.0,0.16670736]
[1765782086473,0.00011456,89878.0,89877.0,0.18895999]
[1765782089468,0.00011456,89878.0,89877.0,0.19792999]
[1765782097457,0.00011456,89878.0,89877.0,0.28150057]
[1765782097665,0.00011456,89878.0,89877.0,0.25924794]
[1765782100598,0.00011456,89878.0,89877.0,0.01712507]
[1765782100977,0.01569456,89878.0,89877.0,0.006]
[1765782101186,0.03920456,89878.0,89877.0,0.006]
[1765782101399,0.04081743,89878.0,89877.0,0.006]
[1765782101572,0.15207838,89878.0,89877.0,0.006]
[1765782101813,0.04081743,89878.0,89877.0,0.006]
[1765782102028,0.04081743,89878.0,89877.0,0.004]
[1765782102445,0.04081743,89878.0,89877.0,0.001]
[1765782102891,0.04081743,89878.0,89852.0,0.05969397]
[1765782102892,0.01112866,89858.0,89852.0,0.05969397]
[1765782103104,0.01112904,89855.0,89851.0,0.01112953]
[1765782103312,0.01112904,89855.0,89852.0,0.01112941]
[1765782103509,0.23370466,89857.0,89852.0,0.01112941]
[1765782103737,0.01112879,89857.0,89853.0,0.01112928]
[1765782104013,0.01038,89859.0,89855.0,0.01112904]
[1765782104259,0.01038,89859.0,89856.0,0.01112891]
[1765782104610,0.02150854,89859.0,89855.0,0.01112904]
[1765782105211,0.02150854,89859.0,89855.0,0.01312904]
[1765782105830,0.01558,89856.0,89855.0,0.002]
[1765782106037,0.03314,89856.0,89855.0,0.002]
[1765782106254,0.03314,89856.0,89855.0,0.006]
[1765782106255,0.16791095,89856.0,89855.0,0.006]
[1765782107020,0.16791095,89856.0,89855.0,0.002]
[1765782107229,0.05665,89856.0,89855.0,0.002]
[1765782107366,0.01112953,89851.0,89847.0,0.03339009]
[1765782107564,0.01112966,89850.0,89847.0,0.02226006]
[1765782107814,0.03463966,89850.0,89847.0,0.03339009]
[1765782108014,0.03463966,89850.0,89847.0,0.01113003]
[1765782108417,0.02351,89850.0,89847.0,0.03339009]
[1765782108662,0.02351,89850.0,89847.0,0.01113003]
[1765782109420,0.02351,89850.0,89847.0,0.01413003]
[1765782109622,0.03463966,89850.0,89847.0,0.01413003]
[1765782110041,0.25723344,89850.0,89847.0,0.003]
[1765782110496,0.03463966,89850.0,89847.0,0.003]
[1765782110701,0.25723334,89850.0,89847.0,0.003]
[1765782111309,0.01756,89849.0,89847.0,0.003]
[1765782111736,0.26168816,89848.0,89847.0,0.003]
[1765782111938,0.37294911,89848.0,89847.0,0.003]
[1765782112153,0.37294911,89848.0,89833.0,0.23376623]
[1765782112154,0.01113127,89837.0,89833.0,0.01113176]
[1765782112506,0.01038,89834.0,89833.0,0.01113176]
[1765782112706,0.02151164,89834.0,89830.0,0.0004]
[1765782112925,0.01756,89839.0,89836.0,0.01113139]
[1765782113126,0.01113102,89839.0,89836.0,0.01627]
[1765782113299,0.23376828,89833.0,89830.0,0.00051477]
[1765782113502,0.01558,89831.0,89830.0,0.00051477]
[1765782113886,0.03909,89831.0,89830.0,0.00051477]
[1765782114904,0.15035095,89831.0,89830.0,0.00051477]
[1765782115111,0.03909,89831.0,89830.0,0.00251477]
[1765782115314,0.15035095,89831.0,89830.0,0.00251477]
[1765782115550,0.15035095,89831.0,89830.0,0.00551477]
[1765782115752,0.15035095,89831.0,89830.0,0.00051477]
[1765782115955,0.03909,89831.0,89830.0,0.00051477]
[1765782116165,0.03909,89831.0,89830.0,0.00251477]
[1765782116458,0.03909,89831.0,89830.0,0.00051477]
[1765782117239,0.03909,89831.0,89830.0,0.00151477]
[1765782117612,0.03909,89831.0,89830.0,0.00051477]
[1765782118009,0.04009,89831.0,89830.0,0.00051477]
[1765782119980,0.15135095,89831.0,89830.0,0.00051477]
[1765782121708,0.04170287,89831.0,89830.0,0.00051477]
[1765782121917,0.15296382,89831.0,89830.0,0.00051477]
[1765782122097,0.09727291,89831.0,89830.0,0.00051477]
[1765782123158,0.15296382,89831.0,89830.0,0.00051477]
[1765782123808,0.15196382,89831.0,89830.0,0.00051477]
[1765782124018,0.15296382,89831.0,89830.0,0.00051477]
[1765782124466,0.04170287,89831.0,89830.0,0.00051477]
[1765782124685,0.15296382,89831.0,89830.0,0.00051477]
[1765782125363,0.05930287,89831.0,89830.0,0.00051477]
[1765782125579,0.17056382,89831.0,89830.0,0.00051477]
[1765782128299,0.05930287,89831.0,89830.0,0.00051477]
[1765782128692,0.001,89831.0,89830.0,0.26156753]
[1765782129099,0.001,89831.0,89830.0,0.37278982]
[1765782129912,0.01113052,89843.0,89838.0,0.01113114]
[1765782129913,0.01113065,89842.0,89838.0,0.01113114]
[1765782130120,0.01113065,89842.0,89840.0,0.0123]
[1765782130273,0.01113052,89843.0,89841.0,0.01534]
[1765782130458,0.01113052,89843.0,89841.0,0.03841]
[1765782131129,0.01113052,89843.0,89842.0,0.02307]
[1765782131533,0.22259014,89852.0,89842.0,0.03420065]
[1765782131534,0.01112978,89849.0,89842.0,0.03420065]
[1765782131746,0.22255886,89864.0,89842.0,0.03420065]
[1765782131747,0.01112693,89872.0,89863.0,0.01112805]
[1765782131918,0.02225795,89873.0,89870.0,0.01112718]
[1765782132121,0.02225795,89873.0,89865.0,0.0111278]
[1765782132122,0.01112693,89872.0,89868.0,0.01112743]
[1765782132344,0.0111273,89869.0,89866.0,0.0123]
[1765782132500,0.01112718,89870.0,89866.0,0.02342767]
[1765782132709,0.01112705,89871.0,89867.0,0.23367865]
[1765782132904,0.01124159,89871.0,89867.0,0.01112755]
[1765782133129,0.01124159,89871.0,89868.0,0.01112743]
[1765782133331,0.00011454,89871.0,89868.0,0.01112743]
[1765782133550,0.00011454,89871.0,89869.0,0.22254615]
[1765782133761,0.00011454,89871.0,89868.0,0.01112743]
[1765782134316,0.00011454,89871.0,89868.0,0.01212743]
[1765782134958,0.00011454,89871.0,89868.0,0.01412743]
[1765782135165,0.01124159,89871.0,89868.0,0.01412743]
[1765782136148,0.01124159,89871.0,89868.0,0.003]
[1765782136266,0.01617,89869.0,89868.0,0.003]
[1765782136466,0.02655,89869.0,89868.0,0.003]
[1765782137150,0.02655,89869.0,89868.0,0.002]
[1765782137287,0.0376773,89869.0,89866.0,0.01112767]
[1765782137484,0.01038,89869.0,89868.0,0.002]
[1765782137685,0.00011454,89871.0,89868.0,0.2510141]
[1765782137892,0.00011454,89871.0,89870.0,0.01534]
[1765782139550,0.00011454,89871.0,89868.0,0.2336741]
[1765782139758,0.00011454,89871.0,89870.0,0.001]
[1765782140674,0.00011454,89871.0,89868.0,0.01112743]
[1765782140881,0.00011454,89871.0,89870.0,0.002]
[1765782141077,0.00011454,89871.0,89870.0,0.003]
[1765782141279,0.01210741,89871.0,89870.0,0.003]
[1765782141487,0.01210741,89871.0,89870.0,0.002]
[1765782142281,0.02827741,89871.0,89870.0,0.002]
[1765782142492,0.16339836,89871.0,89870.0,0.002]
[1765782143306,0.16339836,89871.0,89843.0,0.01113052]
[1765782143307,0.01113003,89847.0,89843.0,0.01113052]
[1765782143464,0.01113003,89847.0,89844.0,0.0111304]
[1765782143668,0.0111299,89848.0,89845.0,0.01113027]
[1765782144190,0.01038,89852.0,89837.0,0.01113127]
[1765782144191,0.01113089,89840.0,89837.0,0.01113127]
[1765782144390,0.01113102,89839.0,89836.0,0.01113139]
[1765782144600,0.01113102,89839.0,89832.0,0.0123]
[1765782144601,0.01113139,89836.0,89832.0,0.0123]
[1765782144809,0.22264029,89831.0,89830.0,0.0004]
[1765782145254,0.23881029,89831.0,89830.0,0.0004]
[1765782145457,0.26267029,89831.0,89830.0,0.00051477]
[1765782145935,0.2441493,89833.0,89830.0,0.00051477]
[1765782146752,0.2441493,89833.0,89830.0,0.00251477]
[1765782146924,0.2686993,89833.0,89830.0,0.00051477]
[1765782147335,0.01603,89831.0,89830.0,0.00151477]
[1765782148313,0.2441493,89833.0,89830.0,0.00151477]
[1765782148730,0.2441493,89833.0,89830.0,0.00051477]
[1765782149084,0.2441493,89833.0,89830.0,0.00251477]
[1765782149357,0.2441493,89833.0,89830.0,0.00051477]
[1765782149705,0.2441493,89833.0,89830.0,0.00151477]
[1765782149879,0.01113176,89833.0,89830.0,0.00151477]
[1765782150381,0.01113176,89833.0,89830.0,0.01082477]
[1765782151117,0.01113176,89833.0,89830.0,0.01128477]
[1765782151118,0.22263781,89832.0,89830.0,0.01128477]
[1765782151529,0.01113176,89833.0,89830.0,0.01128477]
[1765782151530,0.0176,89837.0,89833.0,0.22263491]
[1765782151702,0.03687287,89852.0,89838.0,0.2226227]
[1765782151703,0.01113003,89847.0,89838.0,0.2226227]
[1765782151878,0.01113003,89847.0,89838.0,0.2385327]
[1765782152103,0.22261303,89842.0,89839.0,0.03566]
[1765782152281,0.01113065,89842.0,89839.0,0.03566]
[1765782152600,0.23374427,89842.0,89840.0,0.02382]
[1765782153949,0.23374427,89842.0,89839.0,0.01184]
[1765782154262,0.23374427,89842.0,89834.0,0.02382]
[1765782154473,0.01113176,89833.0,89830.0,0.0214169]
[1765782154763,0.01113164,89834.0,89831.0,0.01113201]
[1765782155225,0.01113164,89834.0,89831.0,0.03495201]
[1765782155576,0.01113139,89836.0,89833.0,0.01113176]
[1765782155789,0.01113127,89837.0,89834.0,0.01113164]
[1765782156004,0.23375991,89836.0,89832.0,0.03495189]
[1765782156422,0.01113139,89836.0,89832.0,0.03495189]
[1765782156626,0.23375976,89836.0,89832.0,0.03495189]
[1765782157089,0.23375976,89836.0,89834.0,0.003]
[1765782157278,0.01113151,89835.0,89834.0,0.003]
[1765782158064,0.22263285,89834.0,89832.0,0.002]
[1765782158271,0.01594,89833.0,89832.0,0.002]
[1765782158498,0.04082,89833.0,89832.0,0.005]
[1765782158706,0.04082,89833.0,89832.0,0.002]
[1765782159289,0.22263781,89832.0,89830.0,0.00051477]
[1765782159511,0.01594,89831.0,89830.0,0.00051477]
[1765782160157,0.22263781,89832.0,89830.0,0.00051477]
[1765782161630,0.01594,89831.0,89830.0,0.00051477]
[1765782161978,0.22263781,89832.0,89830.0,0.00151477]
[1765782162181,0.04082,89831.0,89830.0,0.00151477]
[1765782162603,0.04082,89831.0,89830.0,0.00051477]
[1765782163032,0.04082,89831.0,89830.0,0.00151477]
[1765782163201,0.09639004,89831.0,89830.0,0.00151477]
[1765782164779,0.09639004,89831.0,89830.0,0.00051477]
[1765782165407,0.04082,89831.0,89830.0,0.00051477]
[1765782165622,0.44278095,89831.0,89830.0,0.00051477]
[1765782165801,0.44478095,89831.0,89830.0,0.00051477]
[1765782166220,0.44278095,89831.0,89830.0,0.00051477]
[1765782166627,0.44578095,89831.0,89830.0,0.00051477]
[1765782167619,0.44778095,89831.0,89830.0,0.00051477]
[1765782170033,0.55828857,89831.0,89830.0,0.00051477]
[1765782170259,0.44778095,89831.0,89830.0,0.00051477]
[1765782170679,0.35412,89831.0,89830.0,0.00051477]
[1765782172834,0.42009254,89831.0,89830.0,0.00051477]
[1765782175482,0.7331325,89831.0,89830.0,0.00051477]
[1765782175681,0.89441184,89831.0,89830.0,0.00051477]
[1765782175831,1.00491946,89831.0,89830.0,0.00051477]
[1765782176441,1.00191946,89831.0,89830.0,0.00051477]
[1765782176842,1.00191946,89831.0,89830.0,0.00151477]
[1765782176843,1.00691946,89831.0,89830.0,0.00151477]
[1765782177024,1.00491946,89831.0,89830.0,0.00151477]
[1765782177434,1.00891946,89831.0,89830.0,0.00151477]
[1765782180501,0.89841184,89831.0,89830.0,0.00151477]
[1765782181122,0.84618384,89831.0,89830.0,0.00151477]
[1765782181323,0.61192545,89831.0,89830.0,0.00151477]
[1765782181679,0.47978345,89831.0,89830.0,0.00151477]
[1765782183120,0.47978345,89831.0,89812.0,0.0004]
[1765782183121,0.22275435,89785.0,89782.0,0.03965913]
[1765782183314,0.22275435,89785.0,89757.0,0.0116]
[1765782183315,0.53976909,89771.0,89752.0,0.04005913]
[1765782183523,0.55736909,89771.0,89770.0,0.00078282]
[1765782183759,0.59224401,89771.0,89770.0,0.00078282]
[1765782184170,0.70350496,89771.0,89770.0,0.00078282]
[1765782184583,0.59224401,89771.0,89770.0,0.00078282]
[1765782185219,0.59224401,89771.0,89752.0,0.01154181]
[1765782185220,0.74930833,89771.0,89752.0,0.0004]
[1765782185422,0.52943377,89753.0,89752.0,0.00049812]